bitfinex/quotes_BTCUSD_20241201
["timestamp","ask_amount","ask_price","bid_price","bid_amount"]
[1733086504676,0.590328,97270.0,97269.0,0.0756]
[1733086504895,0.0008635,97274.0,97270.0,0.0478]
[1733086505133,0.720488,97273.0,97270.0,0.0478]
[1733086505348,0.762086,97272.0,97271.0,0.00525536]
[1733086505531,0.80547,97273.0,97270.0,0.0478]
[1733086506033,0.720488,97273.0,97270.0,0.0478]
[1733086506245,0.819753,97272.0,97270.0,0.0478]
[1733086506684,0.630216,97271.0,97270.0,0.0488]
[1733086507131,0.304367,97273.0,97270.0,0.05405287]
[1733086507408,0.37322,97273.0,97271.0,0.0453]
[1733086507588,0.344143,97272.0,97271.0,0.0453]
[1733086507839,0.171776,97272.0,97271.0,0.0453]
[1733086508046,0.434271,97273.0,97271.0,0.0453]
[1733086509159,0.206645,97272.0,97271.0,0.0453]
[1733086509395,0.412139,97273.0,97271.0,0.0453]
[1733086509892,0.412139,97273.0,97271.0,0.0463]
[1733086510338,0.412139,97273.0,97271.0,0.0453]
[1733086510570,0.412139,97273.0,97271.0,0.0463]
[1733086512376,0.4130026,97273.0,97271.0,0.0463]
[1733086512593,2.026936,97272.0,97271.0,0.0463]
[1733086512841,2.011545,97272.0,97271.0,0.0463]
[1733086513073,1.994476,97272.0,97271.0,0.0463]
[1733086513710,1.994476,97272.0,97271.0,0.0453]
[1733086514102,1.824858,97272.0,97271.0,0.0463]
[1733086515154,1.724858,97272.0,97271.0,0.0463]
[1733086515376,1.740834,97272.0,97271.0,0.0463]
[1733086515572,1.551854,97272.0,97271.0,0.0463]
[1733086516845,1.551854,97272.0,97271.0,0.0444]
[1733086517007,1.062992,97272.0,97271.0,0.0444]
[1733086517220,1.062992,97272.0,97271.0,0.04976729]
[1733086518430,0.0008636,97273.0,97271.0,0.04976729]
[1733086518854,1.275318,97272.0,97271.0,0.04976729]
[1733086519320,1.275318,97272.0,97271.0,0.0444]
[1733086519528,1.275318,97272.0,97271.0,0.0434]
[1733086519884,1.275318,97272.0,97271.0,0.0444]
[1733086520110,1.275318,97272.0,97271.0,0.0434]
[1733086520553,1.275318,97272.0,97271.0,0.0444]
[1733086520872,1.259376,97272.0,97271.0,0.0444]
[1733086523533,0.997282,97272.0,97271.0,0.0444]
[1733086523737,0.556997,97272.0,97271.0,0.0444]
[1733086523942,0.152019,97272.0,97271.0,0.04976729]
[1733086524174,0.1427,97272.0,97271.0,0.04976729]
[1733086524370,0.121232,97272.0,97271.0,0.04976729]
[1733086524781,0.121232,97272.0,97271.0,0.05149429]
[1733086524981,0.1220955,97272.0,97271.0,0.05149429]
[1733086528889,0.1220955,97272.0,97271.0,0.04959429]
[1733086531444,0.0008635,97272.0,97271.0,0.04959429]
[1733086531876,1.1075345,97272.0,97271.0,0.04959429]
[1733086532094,1.0915345,97272.0,97271.0,0.04959429]
[1733086532293,1.0915345,97272.0,97271.0,0.044227]
[1733086532549,0.8945405,97272.0,97271.0,0.044227]
[1733086532775,0.4437625,97272.0,97271.0,0.044227]
[1733086532986,0.0008636,97273.0,97271.0,0.04898246]
[1733086533229,0.0008636,97273.0,97272.0,0.10284521]
[1733086533486,0.0008636,97273.0,97272.0,0.15094521]
[1733086533701,0.0008636,97273.0,97272.0,0.23639978]
[1733086535054,0.0008636,97273.0,97272.0,0.23739978]
[1733086539749,0.0008636,97273.0,97272.0,0.23639978]
[1733086539969,0.0008636,97273.0,97272.0,0.23839978]
[1733086543158,0.0008636,97273.0,97272.0,0.23649978]
[1733086543838,0.00053354,97302.0,97273.0,0.0454]
[1733086544112,0.00053354,97302.0,97274.0,0.10284521]
[1733086544357,2.688355,97301.0,97275.0,0.0454]
[1733086544574,2.688355,97301.0,97276.0,0.10284521]
[1733086544795,2.678355,97300.0,97276.0,0.10284521]
[1733086545253,2.678355,97299.0,97276.0,0.10284521]
[1733086545499,2.678355,97298.0,97276.0,0.10284521]
[1733086545740,3.020755,97297.0,97275.0,0.0454]
[1733086545970,0.1024,97295.0,97274.0,0.001]
[1733086546199,0.078,97288.0,97274.0,0.001]
[1733086546424,0.078,97284.0,97261.0,0.0454]
[1733086546646,2.692755,97283.0,97261.0,0.0454]
[1733086546871,2.678355,97282.0,97261.0,0.0454]
[1733086547096,2.678355,97281.0,97276.0,0.001]
[1733086547318,2.678355,97280.0,97274.0,0.001]
[1733086547556,2.78118646,97279.0,97274.0,0.001]
[1733086547807,2.678355,97278.0,97274.0,0.001]
[1733086548043,2.678355,97277.0,97274.0,0.001]
[1733086548500,2.678355,97276.0,97274.0,0.001]
[1733086548743,2.678355,97275.0,97274.0,0.001]
[1733086549215,3.12880875,97275.0,97274.0,0.001]
[1733086549675,3.12880875,97275.0,97271.0,0.001727]
[1733086549898,2.78120021,97274.0,97271.0,0.001727]
[1733086550122,2.678355,97273.0,97271.0,0.001727]
[1733086550350,2.678355,97272.0,97271.0,0.001727]
[1733086551707,2.7747208,97272.0,97271.0,0.001727]
[1733086552207,2.7747208,97272.0,97271.0,0.002727]
[1733086552439,2.7747208,97272.0,97271.0,0.001727]
[1733086552665,2.7837208,97272.0,97271.0,0.002727]
[1733086553801,2.689355,97272.0,97268.0,0.00052489]
[1733086554042,2.678355,97271.0,97268.0,0.00052489]
[1733086554484,2.678355,97270.0,97268.0,0.00052489]
[1733086554742,2.678355,97269.0,97268.0,0.00021291]
[1733086555425,2.678355,97269.0,97268.0,0.00121291]
[1733086555868,2.678355,97269.0,97268.0,0.00021291]
[1733086556096,2.678355,97269.0,97268.0,0.00121291]
[1733086556309,2.678355,97269.0,97268.0,0.00021291]
[1733086556762,2.687355,97269.0,97268.0,0.00121291]
[1733086557242,2.79018646,97269.0,97268.0,0.00121291]
[1733086557475,2.79118646,97269.0,97268.0,0.00121291]
[1733086557674,2.688355,97269.0,97268.0,0.00121291]
[1733086558814,2.688355,97269.0,97268.0,1.291e-05]
[1733086560905,2.688355,97269.0,97268.0,0.00174071]
[1733086561784,0.25,97265.0,97251.0,0.00079025]
[1733086562003,2.678355,97264.0,97251.0,0.00079025]
[1733086562226,2.78118646,97263.0,97251.0,0.00079025]
[1733086562438,0.10283146,97263.0,97251.0,0.00079025]
[1733086562672,2.678355,97262.0,97251.0,0.00079025]
[1733086562889,0.25,97265.0,97251.0,0.00079025]
[1733086562890,2.678355,97264.0,97251.0,0.00079025]
[1733086563345,2.687355,97264.0,97251.0,0.00121233]
[1733086563575,2.678355,97263.0,97251.0,0.00021233]
[1733086563802,2.678355,97264.0,97251.0,0.00021233]
[1733086564033,0.009,97262.0,97251.0,0.00121233]
[1733086564279,2.678355,97261.0,97251.0,0.00121233]
[1733086564504,2.78118646,97261.0,97251.0,0.00121233]
[1733086564751,2.678355,97260.0,97251.0,0.00121233]
[1733086564980,2.678355,97260.0,97251.0,0.00021233]
[1733086565442,2.678355,97260.0,97251.0,0.00121233]
[1733086565732,2.678355,97260.0,97251.0,0.00021233]
[1733086565967,2.678355,97260.0,97251.0,0.00121233]
[1733086565968,2.686355,97260.0,97251.0,0.00121233]
[1733086566210,2.678355,97259.0,97251.0,0.00121233]
[1733086566434,0.25,97253.0,97251.0,0.00221233]
[1733086566670,2.678355,97252.0,97251.0,0.00221233]
[1733086566918,2.405815,97252.0,97251.0,0.0002488]
[1733086567152,1.91954,97252.0,97244.0,0.0454]
[1733086567390,0.25,97253.0,97251.0,0.001]
[1733086567607,2.544789,97252.0,97251.0,0.001]
[1733086567856,1.645483,97252.0,97244.0,0.0454]
[1733086568086,1.949897,97252.0,97251.0,0.003]
[1733086568325,1.882068,97252.0,97251.0,0.003]
[1733086568536,1.882068,97252.0,97251.0,0.004]
[1733086568762,1.787361,97252.0,97251.0,0.003]
[1733086569201,0.916746,97252.0,97245.0,0.0817]
[1733086569429,0.136965,97251.0,97246.0,0.05888272]
[1733086569701,0.390729,97252.0,97247.0,0.0817]
[1733086569959,0.460218,97252.0,97248.0,0.04584225]
[1733086570195,0.236822,97251.0,97248.0,0.04584225]
[1733086570426,0.487021,97252.0,97249.0,0.00394438]
[1733086570675,0.493907,97252.0,97249.0,0.00394438]
[1733086571150,0.39502,97252.0,97247.0,0.0817]
[1733086571392,0.489217,97252.0,97247.0,0.0817]
[1733086571622,0.489217,97252.0,97248.0,0.00394509]
[1733086571855,0.489217,97252.0,97247.0,0.0817]
[1733086572331,0.492217,97252.0,97247.0,0.0817]
[1733086572561,6.729e-05,97253.0,97248.0,0.003]
[1733086572562,0.531508,97251.0,97248.0,0.003]
[1733086572789,0.423371,97252.0,97248.0,0.003]
[1733086573005,0.499583,97251.0,97249.0,0.046]
[1733086573502,0.548314,97252.0,97250.0,0.00394368]
[1733086573737,0.004,97252.0,97251.0,0.046]
[1733086574184,0.008,97252.0,97251.0,0.04994297]
[1733086574880,2.00626,97252.0,97251.0,0.04994297]
[1733086575108,2.10909146,97252.0,97251.0,0.04994297]
[1733086575327,2.10109146,97252.0,97249.0,0.003]
[1733086575543,2.47465,97251.0,97245.0,0.046]
[1733086575735,2.35508,97250.0,97245.0,0.046]
[1733086575988,1.891556,97249.0,97245.0,0.046]
[1733086576218,0.10283146,97252.0,97245.0,0.046]
[1733086576219,1.903361,97251.0,97245.0,0.046]
[1733086576437,2.322984,97251.0,97245.0,0.046]
[1733086576660,2.264167,97250.0,97249.0,0.003]
[1733086576881,0.002,97250.0,97249.0,0.003]
[1733086577106,1.99589,97250.0,97245.0,0.046]
[1733086577374,2.216322,97249.0,97245.0,0.046]
[1733086577589,2.117522,97248.0,97245.0,0.049]
[1733086577817,2.347377,97251.0,97245.0,0.049]
[1733086578252,1.759513,97251.0,97245.0,0.049]
[1733086578470,1.829567,97252.0,97245.0,0.049]
[1733086578717,1.672279,97251.0,97245.0,0.046]
[1733086578936,1.252749,97250.0,97249.0,0.003]
[1733086579165,1.252749,97250.0,97249.0,0.0487]
[1733086579386,6.729e-05,97253.0,97250.0,0.0769]
[1733086579896,0.523521,97252.0,97251.0,0.00483163]
[1733086580107,0.520521,97252.0,97251.0,0.00483163]
[1733086580323,0.520521,97252.0,97250.0,0.0769]
[1733086580542,0.520521,97252.0,97251.0,0.00283163]
[1733086580771,0.520521,97252.0,97250.0,0.0769]
[1733086580988,0.520521,97252.0,97251.0,0.00537901]
[1733086581716,0.520521,97252.0,97250.0,0.0769]
[1733086581937,0.520521,97252.0,97251.0,0.003]
[1733086582634,0.520521,97252.0,97250.0,0.0769]
[1733086582869,0.523521,97252.0,97250.0,0.0769]
[1733086583089,0.523521,97252.0,97250.0,0.0799]
[1733086583320,0.74185,97251.0,97250.0,0.0799]
[1733086583566,0.74185,97251.0,97250.0,0.0769]
[1733086583783,0.762444,97251.0,97250.0,0.0769]
[1733086584007,0.769481,97252.0,97250.0,0.0769]
[1733086584253,0.74185,97251.0,97250.0,0.0769]
[1733086584493,0.772481,97252.0,97250.0,0.0769]
[1733086584740,0.74185,97251.0,97250.0,0.0769]
[1733086585460,0.694055,97251.0,97250.0,0.0769]
[1733086585688,0.793489,97252.0,97250.0,0.0799]
[1733086585929,0.648306,97251.0,97250.0,0.0799]
[1733086586157,0.648306,97251.0,97250.0,0.1256]
[1733086586601,0.645306,97251.0,97250.0,0.1226]
[1733086586823,0.721191,97252.0,97250.0,0.1226]
[1733086587049,0.692875,97251.0,97250.0,0.1226]
[1733086587502,0.721191,97252.0,97250.0,0.1226]
[1733086587752,0.7921,97252.0,97250.0,0.1226]
[1733086588239,0.74319,97251.0,97250.0,0.1226]
[1733086588478,1.182606,97252.0,97250.0,0.1256]
[1733086588709,1.476418,97252.0,97250.0,0.1256]
[1733086588902,0.003,97251.0,97250.0,0.1256]
[1733086589145,1.470575,97251.0,97250.0,0.1226]
[1733086589647,1.467575,97251.0,97250.0,0.1256]
[1733086590143,1.519486,97252.0,97250.0,0.1256]
[1733086590374,1.52192,97251.0,97250.0,0.1256]
[1733086590832,0.003,97251.0,97250.0,0.1256]
[1733086591303,2.16395,97251.0,97250.0,0.12984359]
[1733086591539,2.16395,97251.0,97250.0,0.1226]
[1733086591986,1.984359,97251.0,97250.0,0.1256]
[1733086592443,2.202831,97252.0,97250.0,0.1226]
[1733086592697,2.171515,97251.0,97250.0,0.1256]
[1733086592956,0.003,97251.0,97250.0,0.1256]
[1733086593182,2.174515,97251.0,97250.0,0.1256]
[1733086593407,2.174515,97251.0,97250.0,0.1226]
[1733086594772,2.174515,97251.0,97250.0,0.1256]
[1733086595266,2.17432156,97251.0,97250.0,0.1226]
[1733086595494,2.17432156,97251.0,97250.0,0.1256]
[1733086596410,2.17432156,97251.0,97250.0,0.12590672]
[1733086597569,2.17432156,97251.0,97250.0,0.06798028]
[1733086598053,2.17432156,97251.0,97250.0,0.06970908]
[1733086598551,1.92594956,97251.0,97250.0,0.06970908]
[1733086601346,1.92594956,97251.0,97250.0,0.05073552]
[1733086604976,1.90420956,97251.0,97250.0,0.05073552]
[1733086605674,0.00280656,97251.0,97250.0,0.05073552]
[1733086606130,1.90420956,97251.0,97250.0,0.05550897]
[1733086606580,1.90420956,97251.0,97250.0,0.05073552]
[1733086608357,1.54658956,97251.0,97250.0,0.00662095]
[1733086608599,1.52599556,97251.0,97250.0,0.00662095]
[1733086608814,0.68993456,97251.0,97250.0,0.00662095]
[1733086609025,0.63625456,97251.0,97250.0,0.00662095]
[1733086609257,0.48811656,97251.0,97250.0,0.00662095]
[1733086610407,0.48898096,97251.0,97250.0,0.00662095]
[1733086612690,0.44841096,97251.0,97250.0,0.00662095]
[1733086614903,0.43608796,97251.0,97250.0,0.00662095]
[1733086615581,0.43608796,97251.0,97250.0,0.00435255]
[1733086616253,0.01350696,97251.0,97250.0,0.00435255]
[1733086616686,0.50903696,97251.0,97250.0,0.0085939]
[1733086616899,0.45668096,97251.0,97250.0,0.00435255]
[1733086618696,0.45668096,97251.0,97250.0,0.05355255]
[1733086618909,0.35086096,97251.0,97250.0,0.12915255]
[1733086619138,0.35086096,97251.0,97250.0,0.1333939]
[1733086622085,0.15500396,97251.0,97250.0,0.14690617]
[1733086622313,0.01350696,97251.0,97250.0,0.23623911]
[1733086622975,0.01350696,97251.0,97250.0,0.23623912]
[1733086626086,0.01350696,97251.0,97250.0,0.23396531]
[1733086626557,0.01350696,97251.0,97250.0,0.24343177]
[1733086627272,0.01350696,97251.0,97250.0,0.26794783]
[1733086628468,0.01350696,97251.0,97250.0,0.24343177]
[1733086629435,0.01350696,97251.0,97250.0,0.24338855]
[1733086629912,0.01450696,97251.0,97250.0,0.24838855]
[1733086630350,0.0117004,97251.0,97250.0,0.24838855]
[1733086630611,0.0127004,97251.0,97250.0,0.25638855]
[1733086631036,0.49957908,97291.0,97268.0,0.0494]
[1733086631255,0.0005951,97278.0,97268.0,0.04970673]
[1733086631542,1.371135,97277.0,97269.0,0.00449976]
[1733086631782,1.371135,97277.0,97269.0,0.00480649]
[1733086631990,1.371135,97277.0,97269.0,0.00030673]
[1733086632451,0.0005951,97278.0,97269.0,0.00030673]
[1733086632452,1.114401,97276.0,97269.0,0.00030673]
[1733086632681,1.198652,97277.0,97269.0,0.00030673]
[1733086632903,1.21924,97277.0,97269.0,0.00030673]
[1733086633145,1.198652,97277.0,97269.0,0.00130673]
[1733086633355,1.144085,97276.0,97269.0,0.01476405]
[1733086633572,1.21924,97277.0,97269.0,0.00130673]
[1733086633797,1.142567,97275.0,97269.0,0.00130673]
[1733086634015,1.21924,97277.0,97269.0,0.00130673]
[1733086634233,1.467659,97274.0,97269.0,0.00130673]
[1733086634453,1.264988,97273.0,97269.0,0.00130673]
[1733086634672,1.643039,97276.0,97269.0,0.00130673]
[1733086634882,1.663628,97276.0,97269.0,0.00130673]
[1733086635111,1.663628,97276.0,97269.0,0.00030673]
[1733086635587,1.663628,97276.0,97269.0,0.00230673]
[1733086635804,1.641521,97275.0,97269.0,0.00230673]
[1733086636026,1.643039,97276.0,97269.0,0.00230673]
[1733086636297,1.663628,97276.0,97269.0,0.00230673]
[1733086636740,0.003,97273.0,97269.0,0.00030673]
[1733086636949,1.173704,97272.0,97269.0,0.00030673]
[1733086637165,1.173704,97272.0,97269.0,0.00230673]
[1733086638084,1.550432,97271.0,97269.0,0.00230673]
[1733086638300,1.550432,97271.0,97269.0,0.00030673]
[1733086638514,1.524693,97270.0,97269.0,0.00030673]
[1733086638730,1.341599,97277.0,97269.0,0.00230673]
[1733086639244,1.341599,97277.0,97269.0,0.00030673]
[1733086639467,0.003,97272.0,97269.0,0.00330673]
[1733086639673,1.341599,97277.0,97269.0,0.00330673]
[1733086639895,1.618442,97276.0,97269.0,0.00030673]
[1733086640122,2.029177,97277.0,97269.0,0.00030673]
[1733086640344,1.940022,97276.0,97269.0,0.00130673]
[1733086640995,2.013669,97277.0,97269.0,0.00130673]
[1733086641254,0.003,97272.0,97269.0,0.00130673]
[1733086641498,1.666317,97276.0,97269.0,0.00130673]
[1733086641741,1.265691,97271.0,97269.0,0.00130673]
[1733086641955,2.009454,97277.0,97269.0,0.00130673]
[1733086642176,1.260541,97270.0,97269.0,0.00030673]
[1733086642428,1.586869,97270.0,97269.0,0.00030673]
[1733086642739,0.004,97276.0,97269.0,0.00230673]
[1733086642977,0.004,97276.0,97269.0,0.00030673]
[1733086643215,1.956759,97275.0,97269.0,0.00030673]
[1733086643461,0.0014595,97278.0,97269.0,0.00030673]
[1733086643462,0.002,97270.0,97269.0,0.00330673]
[1733086643697,0.344451,97270.0,97269.0,0.00330673]
[1733086643936,0.427585,97273.0,97269.0,0.00030673]
[1733086644181,0.767831,97275.0,97269.0,0.00679121]
[1733086644433,0.611924,97274.0,97269.0,0.00679121]
[1733086644673,0.861395,97277.0,97269.0,0.00230673]
[1733086644907,0.445852,97273.0,97269.0,0.00230673]
[1733086645129,0.004,97275.0,97269.0,0.00230673]
[1733086645392,0.406452,97272.0,97269.0,0.00030673]
[1733086645625,0.004,97275.0,97269.0,0.00330673]
[1733086645847,0.004,97275.0,97270.0,0.0044836]
[1733086646114,0.004,97275.0,97270.0,0.00479033]
[1733086646290,0.0008644,97277.0,97270.0,0.00479033]
[1733086646570,0.221405,97276.0,97270.0,0.00479033]
[1733086646756,0.004,97274.0,97271.0,0.1251]
[1733086647045,0.0008644,97277.0,97271.0,0.12540672]
[1733086647235,0.004,97275.0,97271.0,0.12540672]
[1733086647524,0.004,97275.0,97272.0,0.00448183]
[1733086647752,0.004,97275.0,97272.0,0.00478855]
[1733086647978,0.0008644,97277.0,97272.0,0.00478855]
[1733086648198,0.501276,97276.0,97272.0,0.00478855]
[1733086649976,0.004,97275.0,97272.0,0.00678855]
[1733086650397,0.0008644,97277.0,97272.0,0.00678855]
[1733086650398,2.678355,97274.0,97272.0,0.00678855]
[1733086650638,0.0785,97273.0,97272.0,0.00678855]
[1733086650858,0.0785,97273.0,97272.0,0.00230672]
[1733086651318,0.0785,97273.0,97272.0,0.00030672]
[1733086651319,2.756855,97273.0,97272.0,0.00030672]
[1733086651555,0.0785,97273.0,97272.0,0.00230672]
[1733086652044,2.756855,97273.0,97272.0,0.00030672]
[1733086652502,2.758855,97273.0,97272.0,4.265e-05]
[1733086652957,2.767855,97273.0,97257.0,0.0795]
[1733086653177,2.678355,97272.0,97257.0,0.0795]
[1733086654603,2.678355,97271.0,97257.0,0.0795]
[1733086655513,2.78118646,97271.0,97257.0,0.0795]
[1733086655739,2.728155,97270.0,97255.0,0.00946646]
[1733086655984,2.53004443,97269.0,97255.0,0.00946646]
[1733086656226,2.04167,97268.0,97255.0,0.00946646]
[1733086656454,0.0498,97270.0,97256.0,0.01936143]
[1733086656455,2.530045,97269.0,97256.0,0.01936143]
[1733086656697,1.844728,97268.0,97256.0,0.01936143]
[1733086656945,1.824135,97267.0,97257.0,0.0040017]
[1733086657180,1.824135,97267.0,97256.0,0.01936143]
[1733086657181,1.300764,97266.0,97256.0,0.01936143]
[1733086657418,1.269873,97265.0,97256.0,0.01936143]
[1733086657657,1.180175,97264.0,97256.0,0.01936143]
[1733086657892,1.159583,97264.0,97256.0,0.01936143]
[1733086658149,0.865739,97263.0,97256.0,0.01936143]
[1733086658363,1.044414,97262.0,97256.0,0.01936143]
[1733086658589,1.044414,97262.0,97257.0,0.001728]
[1733086658821,0.730297,97261.0,97257.0,0.001728]
[1733086659039,0.690897,97260.0,97257.0,0.001728]
[1733086659492,0.604776,97259.0,97257.0,0.001728]
[1733086659929,0.567251,97258.0,97257.0,0.001728]
[1733086660162,0.959248,97258.0,97257.0,0.001728]
[1733086660411,0.687709,97258.0,97257.0,0.001728]
[1733086660620,0.327397,97258.0,97257.0,0.001728]
[1733086661801,0.336864,97258.0,97257.0,0.002728]
[1733086662042,0.198972,97258.0,97257.0,0.002728]
[1733086662269,0.198972,97258.0,97257.0,0.001728]
[1733086662489,0.202972,97258.0,97257.0,0.003728]
[1733086662914,0.202972,97258.0,97257.0,0.001728]
[1733086663126,0.198972,97258.0,97257.0,0.001728]
[1733086663354,0.198972,97258.0,97257.0,0.003728]
[1733086663578,0.201972,97258.0,97257.0,0.003728]
[1733086669540,0.05324259,97258.0,97257.0,0.003728]
[1733086669993,0.05324259,97258.0,97257.0,0.00719693]
[1733086675901,0.05324259,97258.0,97257.0,0.13799693]
[1733086680130,0.003,97258.0,97257.0,0.13799693]
[1733086681025,1.742671,97258.0,97257.0,0.13799693]
[1733086681293,2.74223908,97269.0,97257.0,0.13799693]
[1733086681515,2.24266,97268.0,97257.0,0.13799693]
[1733086681741,0.49957908,97269.0,97257.0,0.13799693]
[1733086681742,2.24266,97267.0,97257.0,0.134528]
[1733086681958,2.24266,97268.0,97257.0,0.134528]
[1733086682180,2.24266,97268.0,97257.0,0.132528]
[1733086682390,2.24266,97267.0,97257.0,0.132528]
[1733086682627,2.24266,97266.0,97257.0,0.132528]
[1733086683115,1.793613,97265.0,97257.0,0.132528]
[1733086683324,1.051569,97264.0,97257.0,0.132528]
[1733086683549,0.001,97268.0,97260.0,0.0764]
[1733086683762,0.257968,97267.0,97262.0,0.0764]
[1733086684042,0.008,97266.0,97263.0,0.046]
[1733086684283,0.0008644,97277.0,97265.0,0.046]
[1733086684490,0.984971,97276.0,97267.0,0.046]
[1733086684945,0.0008642,97269.0,97267.0,0.046]
[1733086685185,0.671923,97268.0,97267.0,0.045]
[1733086685632,0.671923,97268.0,97267.0,0.039]
[1733086686282,0.671923,97268.0,97267.0,0.04]
[1733086686723,0.671923,97268.0,97267.0,0.039]
[1733086686931,0.672923,97268.0,97267.0,0.039]
[1733086687358,0.672923,97268.0,97267.0,0.042]
[1733086688528,0.63962,97268.0,97267.0,0.042]
[1733086688748,0.115366,97268.0,97267.0,0.042]
[1733086689182,0.115366,97268.0,97267.0,0.1184]
[1733086698187,0.115366,97268.0,97267.0,0.12191234]
[1733086699057,0.126946,97268.0,97267.0,0.12191234]
[1733086702949,0.126946,97268.0,97267.0,0.12213127]
[1733086703224,0.001,97268.0,97267.0,0.22497648]
[1733086703472,0.001,97268.0,97267.0,0.23813625]
[1733086703964,0.001,97268.0,97267.0,0.22497648]
[1733086705567,0.001,97268.0,97267.0,0.23444294]
[1733086708350,0.001,97268.0,97267.0,0.23617114]
[1733086708584,0.0018641,97268.0,97267.0,0.23617114]
[1733086715389,0.41664817,97295.0,97268.0,0.00946646]
[1733086715632,6.116e-05,97290.0,97269.0,0.10284521]
[1733086715907,2.24266,97289.0,97269.0,0.10655981]
[1733086716139,2.24266,97289.0,97269.0,0.10284521]
[1733086717028,2.24266,97289.0,97269.0,0.10384521]
[1733086717243,0.00906116,97290.0,97269.0,0.10384521]
[1733086717454,2.24266,97289.0,97269.0,0.10384521]
[1733086717668,2.24266,97289.0,97270.0,0.00417805]
[1733086717884,2.24266,97289.0,97271.0,0.10284521]
[1733086718093,2.24266,97289.0,97271.0,0.10306413]
[1733086718318,2.24566,97289.0,97271.0,0.10306413]
[1733086718755,2.154983,97288.0,97271.0,0.10306413]
[1733086719198,1.77403,97287.0,97271.0,0.10306413]
[1733086719478,1.827603,97288.0,97271.0,0.10306413]
[1733086719912,1.827603,97288.0,97271.0,0.10406413]
[1733086720133,1.827603,97288.0,97271.0,0.10306413]
[1733086720365,1.827603,97288.0,97272.0,0.0459]
[1733086720576,0.009,97287.0,97272.0,0.04611892]
[1733086720786,1.827603,97288.0,97272.0,0.04611892]
[1733086721013,1.836603,97288.0,97272.0,0.04611892]
[1733086721267,0.915803,97287.0,97273.0,0.0789]
[1733086721479,0.915803,97287.0,97273.0,0.1028748]
[1733086721691,0.915803,97287.0,97273.0,0.1070502]
[1733086722351,0.756704,97287.0,97274.0,0.0459]
[1733086722562,0.00092526,97290.0,97274.0,0.0459]
[1733086722563,0.714592,97286.0,97274.0,0.0498296]
[1733086722779,0.007,97288.0,97274.0,0.0498296]
[1733086723027,0.683431,97285.0,97274.0,0.0498296]
[1733086723256,0.004,97287.0,97274.0,0.0498296]
[1733086723481,0.613965,97284.0,97274.0,0.0498296]
[1733086723709,0.718592,97286.0,97274.0,0.0498296]
[1733086723932,0.714592,97286.0,97274.0,0.0498296]
[1733086724164,0.857486,97285.0,97274.0,0.0498296]
[1733086724412,0.003,97285.0,97274.0,0.0498296]
[1733086724620,2.24266,97284.0,97274.0,0.0498296]
[1733086724856,2.24266,97284.0,97274.0,0.04711892]
[1733086725526,0.916197,97283.0,97274.0,0.04611892]
[1733086725800,0.606563,97282.0,97274.0,0.0710248]
[1733086726012,0.004,97286.0,97275.0,0.00476581]
[1733086726237,1.058776,97285.0,97275.0,0.00498473]
[1733086726449,0.003,97284.0,97275.0,0.00021892]
[1733086726871,1.315226,97283.0,97275.0,0.00021892]
[1733086727128,0.002,97282.0,97275.0,0.00021892]
[1733086727338,1.947396,97289.0,97276.0,0.00555894]
[1733086727520,1.16808,97288.0,97276.0,0.00021892]
[1733086727758,1.02426909,97288.0,97276.0,0.00021892]
[1733086727969,1.1138,97287.0,97277.0,0.02298641]
[1733086728193,1.1985,97287.0,97277.0,0.00021892]
[1733086728481,1.038171,97286.0,97277.0,0.00021892]
[1733086728703,0.003,97284.0,97277.0,0.00021892]
[1733086728927,1.140481,97283.0,97277.0,0.00021892]
[1733086729183,0.90809,97283.0,97277.0,0.00021892]
[1733086729409,1.342905,97283.0,97277.0,0.00021892]
[1733086729864,1.988708,97289.0,97277.0,0.00121892]
[1733086730085,0.004,97287.0,97277.0,0.00121892]
[1733086730560,1.509573,97286.0,97277.0,0.00121892]
[1733086731046,2.09885,97289.0,97277.0,0.00121892]
[1733086731251,2.09885,97289.0,97277.0,0.00021892]
[1733086731462,2.09885,97289.0,97277.0,0.00221892]
[1733086731686,0.10283146,97288.0,97277.0,0.00221892]
[1733086731914,2.09885,97289.0,97277.0,0.00021892]
[1733086732122,0.002,97283.0,97277.0,0.00021892]
[1733086732358,2.030878,97282.0,97277.0,0.00021892]
[1733086732621,2.030878,97282.0,97277.0,0.00121892]
[1733086732832,1.860337,97281.0,97277.0,0.00121892]
[1733086733071,1.351577,97287.0,97277.0,0.00121892]
[1733086733289,0.990491,97280.0,97277.0,0.00021892]
[1733086733531,1.58538,97286.0,97277.0,0.00021892]
[1733086733718,0.972797,97279.0,97277.0,0.00021892]
[1733086733979,1.125797,97281.0,97277.0,0.00021892]
[1733086734203,0.991097,97278.0,97277.0,0.00021892]
[1733086734428,1.662024,97287.0,97277.0,0.00021892]
[1733086734656,0.991194,97278.0,97277.0,0.00021892]
[1733086734889,1.662121,97287.0,97277.0,0.00221892]
[1733086735377,1.666121,97287.0,97277.0,0.00021892]
[1733086735601,1.662121,97287.0,97277.0,0.00021892]
[1733086735832,1.608923,97286.0,97277.0,0.00021892]
[1733086736060,0.001,97278.0,97277.0,0.00021892]
[1733086736313,1.662121,97287.0,97277.0,0.00021892]
[1733086736547,1.283973,97286.0,97277.0,0.00121892]
[1733086736782,1.283973,97286.0,97277.0,0.00021892]
[1733086737237,1.287973,97286.0,97277.0,0.00021892]
[1733086737500,0.004,97286.0,97277.0,0.00021892]
[1733086737739,2.010209,97285.0,97277.0,0.00121892]
[1733086738736,2.010209,97285.0,97277.0,0.00021892]
[1733086738972,1.951015,97285.0,97277.0,0.00121892]
[1733086739211,0.003,97285.0,97277.0,0.00121892]
[1733086739437,1.890549,97284.0,97277.0,0.00121892]
[1733086740117,1.572089,97284.0,97277.0,0.00121892]
[1733086740358,1.556089,97284.0,97277.0,0.00121892]
[1733086740576,1.802662,97283.0,97277.0,0.00021892]
[1733086740827,1.55275,97282.0,97277.0,0.00121892]
[1733086741322,1.533238,97281.0,97277.0,0.00121892]